bitfinex-derivatives/quotes_ETHF0:USTF0_20250210
["timestamp","ask_amount","ask_price","bid_price","bid_amount"]
[1739203570935,4.16843217,2662.2,2662.1,0.00563497]
[1739203571135,3.2078,2662.6,2662.1,0.00563497]
[1739203571835,4.25953021,2662.5,2662.1,0.00563497]
[1739203572236,0.549,2662.4,2662.1,0.00563497]
[1739203573330,0.00563497,2663.4,2662.1,5.64330208]
[1739203573532,0.5696,2663.1,2662.8,2.42986711]
[1739203573842,0.5528,2663.2,2663.0,3.2078]
[1739203574037,0.00563497,2663.4,2663.1,2.42986711]
[1739203574641,0.00563497,2663.4,2663.3,3.2078]
[1739203574837,0.00563497,2663.4,2663.3,4.9698]
[1739203575147,2.42986711,2664.8,2663.3,4.9698]
[1739203575148,3.2078,2664.9,2663.5,0.7507]
[1739203575435,4.57424316,2664.7,2664.1,2.42986711]
[1739203575830,0.5528,2664.7,2664.1,2.42986711]
[1739203576038,0.5528,2664.7,2664.2,3.2078]
[1739203576233,0.55843497,2664.7,2664.2,3.2078]
[1739203576435,0.55843497,2664.7,2664.4,2.42986711]
[1739203576939,0.00563497,2664.7,2664.5,3.2078]
[1739203579435,0.00563497,2664.7,2664.6,40.8]
[1739203579847,0.00563497,2664.7,2664.5,3.2078]
[1739203586137,0.00563497,2664.7,2664.5,3.5142092]
[1739203586544,0.00563497,2664.7,2664.6,40.8]
[1739203588546,3.7933,2665.5,2664.6,47.3641]
[1739203588743,3.2078,2665.9,2665.4,2.42986711]
[1739203589742,3.21342763,2665.9,2665.4,2.43550208]
[1739203589957,3.21342763,2665.9,2665.4,0.00563497]
[1739203590745,3.21342763,2665.9,2665.4,2.43550208]
[1739203590946,3.21342763,2665.9,2665.4,4.19450208]
[1739203592042,0.00562763,2665.9,2665.5,40.8]
[1739203592644,0.00562763,2665.9,2665.7,2.42986711]
[1739203596149,3.21342763,2665.9,2665.4,2.43550208]
[1739203596346,3.21342763,2665.9,2665.4,4.19350208]
[1739203597546,0.00562763,2665.9,2665.4,4.19350208]
[1739203599056,0.00562763,2665.9,2665.7,2.42986711]
[1739203602055,0.00562763,2665.9,2665.8,1.758]
[1739203602253,0.00562763,2665.9,2665.8,45.472]
[1739203602558,1.7182,2666.7,2665.8,53.48737002]
[1739203602759,1.7182,2666.7,2666.3,2.42986711]
[1739203606756,1.7182,2666.7,2666.2,3.2078]
[1739203607265,3.2078,2666.5,2666.0,2.42986711]
[1739203608960,3.2078,2666.2,2665.8,3.2078]
[1739203609261,0.5962,2666.1,2665.8,3.2078]
[1739203609465,0.5962,2666.1,2665.7,1.758]
[1739203609668,0.5962,2666.1,2665.7,42.558]
[1739203612069,3.2078,2665.9,2665.7,1.758]
[1739203612263,0.5475,2666.0,2665.7,1.758]
[1739203612474,0.6042,2665.8,2665.4,2.43550208]
[1739203612667,0.6042,2665.8,2665.4,43.23550208]
[1739203614476,0.5475,2666.0,2665.7,2.42986711]
[1739203614775,3.2078,2666.5,2665.7,2.42986711]
[1739203615089,4.33101375,2666.4,2666.0,2.42986711]
[1739203616264,3.2078,2666.5,2666.0,4.18786711]
[1739203616470,1.1441,2666.8,2666.3,2.42986711]
[1739203616672,1.1441,2666.8,2666.6,2.42986711]
[1739203616868,3.2078,2666.9,2666.6,2.42986711]
[1739203617071,3.2078,2667.2,2666.7,3.2078]
[1739203617272,3.2078,2667.2,2666.6,2.42986711]
[1739203617476,3.2078,2667.2,2666.7,0.0056243]
[1739203618279,0.5486,2667.1,2666.7,0.0056243]
[1739203618579,0.5486,2667.1,2666.7,40.8056243]
[1739203619981,0.5486,2667.1,2666.7,0.0056243]
[1739203621684,1.1795,2667.0,2666.7,0.0056243]
[1739203622176,3.2078,2666.9,2666.7,0.0056243]
[1739203622382,8.29108278,2666.9,2666.7,0.0056243]
[1739203622582,7.54133278,2666.9,2666.7,0.0056243]
[1739203623181,1.1795,2667.0,2666.7,0.0056243]
[1739203624782,0.0045828,2666.9,2666.7,0.0056243]
[1739203624990,7.44124825,2666.9,2666.7,0.0056243]
[1739203625383,0.0045828,2666.9,2666.7,0.0056243]
[1739203625583,0.0045828,2666.9,2666.7,1.97989492]
[1739203626189,0.0045828,2666.9,2666.7,5.18769492]
[1739203626390,0.0045828,2666.9,2666.7,6.94969492]
[1739203627991,0.0045828,2666.9,2666.8,40.8]
[1739203628386,0.0045828,2666.9,2666.7,6.94969492]
[1739203632283,0.0045828,2666.9,2666.7,1.97989492]
[1739203632483,0.0045828,2666.9,2666.7,0.0056243]
[1739203632484,3.2078,2666.8,2666.7,0.0056243]
[1739203633986,3.95757,2666.8,2666.7,0.0056243]
[1739203634187,7.84610057,2666.8,2666.7,0.0056243]
[1739203635388,4.50717,2666.8,2666.7,0.0056243]
[1739203635584,8.43342048,2666.8,2666.7,0.0056243]
[1739203635790,7.68365048,2666.8,2666.7,0.0056243]
[1739203635989,8.43342048,2666.8,2666.7,0.0056243]
[1739203636183,8.49739841,2666.8,2666.7,0.0056243]
[1739203636393,8.49739884,2666.8,2666.7,0.0056243]
[1739203636586,7.68365048,2666.8,2666.7,0.0056243]
[1739203637196,0.5496,2666.8,2666.7,0.0056243]
[1739203637992,3.7574,2666.8,2666.7,0.0056243]
[1739203639791,4.50717,2666.8,2666.7,0.0056243]
[1739203640597,8.77782854,2666.8,2666.7,0.0056243]
[1739203640903,8.77783854,2666.8,2666.1,1.97427062]
[1739203641193,8.02805854,2666.8,2666.2,40.8]
[1739203641393,0.7498,2666.7,2666.2,40.8]
[1739203641593,3.2078,2666.5,2666.2,40.8]
[1739203641797,4.020302,2666.6,2666.2,40.8]
[1739203642094,0.00558874,2666.6,2666.2,40.8]
[1739203642502,0.00558874,2666.6,2666.4,1.97427062]
[1739203643189,0.00558874,2666.6,2666.5,3.2078]
[1739203643700,0.00558874,2666.6,2666.5,4.3388]
[1739203643892,0.0045828,2666.9,2666.5,45.1388]
[1739203644096,0.0045828,2666.9,2666.8,5.18207062]
[1739203645701,0.0045828,2666.9,2666.8,1.97427062]
[1739203647497,0.0045828,2666.9,2666.5,2.53947062]
[1739203647896,0.0045828,2666.9,2666.5,1.97427062]
[1739203652493,0.0045828,2666.9,2666.4,3.2078]
[1739203652494,0.0045828,2666.9,2666.8,1.97427062]
[1739203655099,3.2078,2668.0,2666.9,0.74973]
[1739203655306,3.2078,2669.4,2667.9,5.18207062]
[1739203655500,1.7171,2669.3,2668.8,1.97427062]
[1739203655808,6.04244205,2669.3,2668.8,1.97427062]
[1739203656308,1.7171,2669.3,2669.1,1.97427062]
[1739203656703,0.5961,2669.3,2669.1,1.97427062]
[1739203656904,3.2078,2669.4,2669.1,1.97427062]
[1739203657604,3.2078,2669.4,2668.9,5.633345]
[1739203657605,0.5611,2669.3,2668.9,5.633345]
[1739203658302,0.5611,2669.3,2669.2,2.425545]
[1739203658507,4.28102655,2669.2,2668.9,2.425545]
[1739203658806,0.5611,2669.3,2668.9,2.425545]
[1739203659308,3.2078,2669.6,2669.2,2.425545]
[1739203659606,3.2078,2669.6,2668.9,2.425545]
[1739203659910,3.2078,2669.3,2668.9,2.425545]
[1739203660602,3.2078,2669.3,2668.6,4.181545]
[1739203660903,1.7516,2670.0,2668.4,0.0056243]
[1739203660904,3.2078,2669.0,2668.4,0.0056243]
[1739203661104,3.2078,2668.5,2668.4,0.0056243]
[1739203661311,3.2078,2668.5,2667.6,2.425545]
[1739203661610,3.7741,2668.4,2667.6,2.425545]
[1739203662109,0.791753,2668.3,2667.6,2.425545]
[1739203662405,0.0056243,2668.2,2667.7,0.0056243]
[1739203663105,0.0056243,2668.2,2667.7,3.2134243]
[1739203664206,0.0056243,2668.2,2667.9,2.425545]
[1739203666607,0.0056243,2668.2,2667.7,3.2134243]
[1739203667213,0.0056243,2668.2,2667.8,0.5593]
[1739203667515,0.0056243,2668.2,2667.9,2.425545]
[1739203668516,0.0056243,2668.2,2668.0,3.2078]
[1739203669219,0.0056243,2668.2,2668.0,4.9728]
[1739203669407,0.0056243,2668.2,2668.1,43.714]
[1739203671209,0.0056243,2668.2,2668.1,45.475]
[1739203672314,0.0056243,2668.2,2668.1,2.914]
[1739203673627,7.30257903,2668.2,2668.1,2.914]
[1739203673807,7.30257903,2668.2,2667.7,0.0056243]
[1739203674211,0.6053,2668.1,2667.7,0.0056243]
[1739203675811,3.2078,2667.8,2667.7,0.0056243]
[1739203676211,3.95729,2667.8,2667.7,0.0056243]
[1739203676406,3.95729,2667.8,2667.0,22.041545]
[1739203676407,7.18847414,2667.8,2667.0,2.425545]
[1739203676718,0.74953,2667.7,2667.0,2.425545]
[1739203677018,3.2078,2667.7,2667.0,2.425545]
[1739203677521,3.2078,2667.7,2667.0,5.633345]
[1739203677719,3.2078,2667.7,2667.1,0.0056243]
[1739203679617,7.11185859,2667.6,2667.1,0.0056243]
[1739203679916,3.2078,2667.3,2667.1,0.0056243]
[1739203680117,1.7315,2667.2,2667.1,0.0056243]
[1739203680311,1.7315,2667.2,2666.6,40.8]
[1739203680312,6.34449516,2667.2,2666.6,40.8]
[1739203680517,6.34449516,2667.2,2666.4,5.633345]
[1739203680518,3.2078,2666.9,2666.4,2.425545]
[1739203680820,7.46901516,2667.2,2666.3,1.758]
[1739203680821,3.2078,2666.5,2666.3,1.758]
[1739203681213,3.95755,2666.9,2666.3,1.758]
[1739203681414,3.2078,2666.9,2666.3,1.758]
[1739203681624,3.2134243,2666.9,2666.3,1.7636243]
[1739203682123,0.0056243,2666.9,2666.4,2.425545]
[1739203685016,3.95762,2666.7,2666.3,0.0056243]
[1739203685215,3.2078,2666.4,2666.3,0.0056243]
[1739203688633,7.21760575,2666.4,2666.3,0.0056243]
[1739203688819,7.21760575,2666.4,2665.6,3.2078]
[1739203689124,7.96750575,2666.4,2665.6,3.2078]
[1739203689520,0.74993,2666.3,2665.6,3.2078]
[1739203689725,3.2078,2666.0,2665.6,40.8]
[1739203689924,0.5894,2665.9,2665.7,0.0056243]
[1739203691019,4.92951718,2665.8,2665.7,0.0056243]
[1739203691218,5.49751718,2665.8,2665.7,0.0056243]
[1739203693231,4.92951718,2665.8,2665.7,0.0056243]
[1739203693924,4.33261718,2665.8,2665.7,0.0056243]
[1739203694119,0.5817,2666.3,2665.7,0.0056243]
[1739203694323,0.5817,2666.3,2665.9,2.425545]
[1739203695122,3.7654,2666.4,2665.9,2.425545]
[1739203695425,0.5817,2666.7,2666.2,2.425545]
[1739203695825,4.54172324,2666.7,2666.2,2.425545]
[1739203696136,7.74952324,2666.7,2665.9,2.425545]
[1739203696523,0.81382485,2666.6,2665.8,44.0078]
[1739203696722,3.2078,2666.3,2665.7,0.0056243]
[1739203696922,0.5593,2666.2,2665.7,0.0056243]
[1739203697126,4.69047707,2666.2,2665.7,0.0056243]
[1739203697720,5.25947707,2666.2,2665.7,0.0056243]
[1739203701237,3.2078,2665.9,2665.7,0.0056243]
[1739203701835,4.00550269,2665.8,2665.7,0.0056243]
[1739203702642,4.60010269,2665.8,2665.7,0.0056243]
[1739203703436,1.1283,2666.2,2665.7,0.0056243]
[1739203703741,4.25130071,2666.1,2665.7,0.0056243]
[1739203704740,4.25130071,2666.1,2665.7,0.6006243]
[1739203706737,4.25130071,2666.1,2665.7,0.0056243]
[1739203706937,0.75005,2665.8,2665.7,0.0056243]
[1739203707239,3.2078,2665.9,2664.8,3.8028]
[1739203707441,3.2078,2665.6,2664.8,3.8028]
[1739203707642,1.1664,2665.5,2664.8,3.8028]
[1739203707838,5.25987566,2665.5,2664.8,3.8028]
[1739203708543,0.0056243,2665.4,2664.9,0.0056243]
[1739203709434,3.2078,2665.3,2664.9,0.0056243]
[1739203710043,4.16946156,2665.2,2665.0,2.425545]
[1739203710443,0.0056243,2665.4,2665.0,2.425545]
[1739203710846,0.0056243,2665.4,2664.9,0.0056243]
[1739203711044,4.16946156,2665.3,2664.9,0.0056243]
[1739203713047,7.37726156,2665.3,2664.9,0.0056243]
[1739203713242,1.2003,2665.2,2664.9,0.0056243]
[1739203713443,3.2078,2665.0,2664.9,0.0056243]
[1739203713746,0.75038,2664.7,2664.1,4.183545]
[1739203713937,3.2078,2664.7,2664.1,1.758]
[1739203714247,3.2078,2664.4,2663.8,3.7927]
[1739203714450,1.1576,2664.3,2663.8,3.7927]
[1739203714947,1.1576,2664.3,2663.8,3.79644952]
[1739203715446,0.6008,2664.3,2663.8,6.22199452]
[1739203716647,0.6008,2664.3,2664.1,3.2078]
[1739203717243,3.8095,2664.7,2664.1,5.633345]
[1739203718048,0.6017,2664.7,2664.1,5.633345]
[1739203718452,3.2078,2665.0,2664.4,5.633345]
[1739203718663,0.6005,2665.1,2664.5,0.5694]
[1739203719362,4.34183385,2665.0,2664.5,0.5694]
[1739203719760,0.6042,2665.3,2664.7,5.633345]
[1739203719953,0.6042,2665.3,2665.0,3.2078]
[1739203720356,0.5763,2665.5,2665.0,5.633345]
[1739203724564,0.6005,2665.6,2665.3,5.633345]
[1739203726659,0.6005,2665.6,2665.0,5.633345]
[1739203727563,0.6005,2665.6,2665.3,3.2078]
[1739203727753,0.6005,2665.6,2665.3,5.633345]
[1739203728758,0.6005,2665.6,2665.3,3.2078]
[1739203729565,0.5548,2665.7,2665.3,5.633345]
[1739203729766,0.5779,2665.8,2665.3,5.18355743]
[1739203730268,0.5726,2665.9,2665.3,5.18355743]
[1739203731559,0.5726,2665.9,2665.3,11.18355743]
[1739203731761,0.5726,2665.9,2665.6,5.63915168]
[1739203732762,0.5945,2666.2,2665.6,5.63915168]
[1739203732966,0.0056243,2666.0,2665.6,5.63915168]
[1739203734970,0.0056243,2666.0,2665.7,0.5578]
[1739203740371,1.1538,2666.8,2665.9,5.63915168]
[1739203740572,3.2078,2667.5,2666.7,3.2078]
[1739203740764,1.732,2667.4,2667.0,3.2078]
[1739203740967,6.01666286,2667.4,2667.0,3.2078]
[1739203741167,0.5677,2667.4,2667.0,3.2078]
[1739203741363,0.5677,2667.4,2667.2,2.43135168]
[1739203741779,0.5677,2667.4,2667.1,40.8]
[1739203742377,0.5677,2667.4,2667.0,3.2078]
[1739203742576,3.2134243,2667.5,2667.2,2.43135168]
[1739203744872,3.2134243,2667.5,2667.0,3.2078]
[1739203745479,1.7949,2667.4,2667.0,3.2078]
[1739203746075,0.0056243,2667.5,2667.2,2.43135168]
[1739203746484,0.0056243,2667.5,2667.3,3.8035]
[1739203746882,3.2078,2668.4,2667.3,14.57483953]
[1739203747183,1.1471,2668.6,2668.2,3.2078]
[1739203747685,1.1471,2668.6,2668.4,2.43135168]
[1739203747874,0.5891,2668.6,2668.4,2.43135168]
[1739203748373,0.0056243,2668.8,2668.5,3.2078]
[1739203748974,0.0056243,2668.8,2668.4,2.43697598]
[1739203749775,0.0056243,2668.8,2668.5,3.2078]
[1739203752684,0.0056243,2668.8,2668.7,2.43135168]
[1739203754379,0.0056243,2668.8,2668.7,2.99235168]
[1739203754578,3.2078,2669.7,2668.7,8.99235168]
[1739203754785,1.755,2670.5,2669.3,2.43135168]
[1739203754786,1.7747,2669.9,2669.3,2.43135168]
[1739203755786,0.0056243,2669.9,2669.4,0.561]
[1739203756085,0.0056243,2669.9,2669.6,2.43135168]
[1739203756881,7.846,2672.7,2669.6,2.43135168]
[1739203756882,3.8009,2671.0,2669.8,3.2078]
[1739203757082,0.5931,2671.0,2670.4,2.43135168]
[1739203757287,0.5931,2671.0,2670.7,2.43135168]
[1739203757587,3.2078,2671.3,2670.7,2.43135168]
[1739203757781,3.2078,2671.9,2671.1,2.43135168]
[1739203758088,17.4541499,2672.1,2671.8,3.2078]
[1739203758290,3.2078,2672.5,2672.0,2.43135168]
[1739203758486,0.5546,2672.9,2672.3,2.43135168]
[1739203758687,0.00558816,2672.5,2672.3,2.43135168]
[1739203758984,0.00558816,2672.5,2671.9,3.2078]
[1739203759182,3.2078,2672.3,2672.1,0.00561346]
[1739203759381,4.15228981,2672.4,2672.1,0.00561346]
[1739203759580,0.00558816,2672.5,2672.1,0.00561346]
[1739203759781,3.2078,2672.4,2672.1,0.00561346]
[1739203759979,7.50931471,2672.4,2672.1,0.00561346]
[1739203760187,14.25753471,2672.4,2671.2,3.2078]
[1739203760387,14.25753471,2672.4,2669.0,1.87286]
[1739203760388,3.2078,2671.3,2670.8,2.43135168]
[1739203761085,3.2078,2670.9,2670.5,2.43135168]
[1739203761294,3.2078,2670.6,2670.2,5.63915168]
[1739203761490,3.2078,2670.6,2670.4,0.00561346]
[1739203761787,4.18972406,2670.5,2670.4,0.00561346]
[1739203762293,0.00561346,2670.7,2670.4,0.00561346]
[1739203762489,3.2078,2670.5,2670.4,0.00561346]
[1739203763190,3.2078,2670.5,2669.6,7.39815168]
[1739203764692,3.2078,2670.5,2669.9,2.43135168]
[1739203766188,3.2078,2670.5,2669.8,0.00561346]
[1739203768498,3.2078,2670.5,2670.2,2.43135168]
[1739203769489,3.2078,2670.5,2669.9,5.63915168]
[1739203770395,3.95655,2670.5,2669.9,5.63915168]
[1739203770690,3.2078,2670.1,2669.8,0.00561346]
[1739203772587,0.74889,2670.0,2669.8,0.00561346]
[1739203772783,0.74888,2670.0,2669.8,0.00561346]
[1739203773086,0.00281744,2670.0,2669.1,3.2078]
[1739203773290,0.00281744,2670.0,2668.1,17.834]
[1739203773291,3.2078,2669.5,2668.8,3.2078]
[1739203773588,3.2078,2669.5,2668.7,4.18535168]
[1739203774394,3.2078,2669.5,2668.8,0.00561346]
[1739203774587,3.7904,2669.8,2668.8,0.00561346]
[1739203774787,4.53934,2669.8,2668.8,3.21341346]
[1739203774988,4.05057284,2669.7,2668.8,3.21341346]
[1739203775495,3.2078,2669.5,2668.8,3.21341346]
[1739203777291,0.5529,2669.7,2669.3,2.43135168]
[1739203778389,0.5529,2669.7,2669.0,2.43135168]
[1739203778598,3.2078,2669.6,2669.0,2.43135168]
[1739203779795,3.2078,2669.6,2669.1,3.2078]
[1739203780096,3.2078,2669.6,2669.3,2.43135168]
[1739203780293,3.2078,2669.9,2669.3,2.43135168]
[1739203780698,7.30148673,2669.9,2669.3,2.43135168]
[1739203780899,7.30148673,2669.9,2669.2,3.23324817]
[1739203782200,0.00281744,2670.0,2669.5,3.23324817]
[1739203783092,0.00281744,2670.0,2669.8,3.23324817]
[1739203786801,0.00281744,2670.0,2669.5,3.23324817]
[1739203787001,4.32397258,2669.9,2669.5,3.23324817]
[1739203787202,4.32397258,2669.9,2669.5,6.44104817]
[1739203787400,0.00281744,2670.0,2669.5,6.44104817]
[1739203787702,0.00281744,2670.0,2669.8,3.23324817]
[1739203788300,0.00281744,2670.0,2669.5,6.44104817]
[1739203788800,3.2078,2669.8,2669.5,3.23324817]
[1739203788997,3.2078,2669.9,2669.5,3.23324817]
[1739203789197,3.2078,2669.9,2669.2,3.23324817]
[1739203789408,7.40667684,2669.9,2669.2,3.23324817]
[1739203790403,4.19887684,2669.9,2669.2,3.23324817]
[1739203791308,0.00281744,2670.0,2669.5,3.23324817]
[1739203792104,0.00281744,2670.0,2669.8,3.23324817]
[1739203793303,0.00561346,2670.7,2669.8,9.98216817]
[1739203793503,0.00561346,2670.7,2670.5,3.23324817]
[1739203794006,0.00561346,2670.7,2670.3,0.00561346]
[1739203795203,0.00561346,2670.7,2670.5,3.23324817]
[1739203797703,0.00561346,2670.7,2670.5,6.44104817]
[1739203800009,0.00561346,2670.7,2670.6,0.578]
[1739203800409,0.00561346,2670.7,2670.6,6.578]
[1739203800605,3.23324817,2672.4,2670.6,6.578]
[1739203800812,3.2078,2672.0,2671.2,3.23324817]
[1739203801713,0.00561346,2671.9,2671.2,3.23324817]
[1739203803704,4.07049433,2671.8,2671.1,3.2078]
[1739203803905,3.2078,2671.6,2671.0,1.753]
[1739203804108,3.95623,2671.6,2671.0,1.753]
[1739203804314,5.95796433,2671.5,2671.0,1.753]
[1739203804512,3.2078,2671.3,2671.0,1.753]
[1739203804815,3.2078,2671.3,2670.6,3.23324817]
[1739203805517,0.5822,2671.5,2671.2,3.23324817]
[1739203805722,0.594,2671.7,2671.2,3.23324817]
[1739203806214,3.8018,2671.7,2671.2,3.23324817]
[1739203807313,0.594,2671.7,2671.5,3.23324817]
[1739203807509,0.00561346,2671.9,2671.5,3.23324817]
[1739203807710,0.00561346,2671.9,2671.2,0.5662]
[1739203807711,0.00561346,2671.9,2671.2,4.98624817]
[1739203808820,3.2078,2671.7,2671.2,4.98624817]
[1739203809211,0.00561346,2671.9,2671.2,4.98624817]
[1739203809416,4.24543986,2671.6,2671.1,3.2078]
[1739203809718,0.572,2671.5,2671.1,3.2078]
[1739203810113,3.2078,2671.4,2671.0,1.753]
[1739203810314,0.572,2671.5,2670.9,3.23324817]
[1739203810723,7.30725167,2671.4,2670.7,3.2078]
[1739203810920,1.1745,2671.3,2670.7,3.2078]
[1739203811121,3.2078,2671.1,2670.7,3.2078]
[1739203812819,3.2078,2671.1,2670.9,3.23324817]
[1739203813212,1.1745,2671.3,2670.9,3.23324817]
[1739203813617,3.2078,2671.4,2670.9,3.23324817]
[1739203814617,0.572,2671.5,2670.7,3.2078]
[1739203814818,0.00561346,2671.9,2671.2,3.23324817]
[1739203815012,0.00561346,2671.9,2671.6,3.23324817]
[1739203815421,0.00561346,2671.9,2671.6,44.03324817]
[1739203815621,0.00561346,2671.9,2671.6,40.8]
[1739203815914,0.00561346,2671.9,2671.5,3.2078]
[1739203816114,0.00561346,2671.9,2671.6,3.23324817]
[1739203817411,0.61121346,2671.9,2671.5,3.2078]
[1739203817620,0.61121346,2671.9,2671.3,44.03324817]
[1739203818018,0.61121346,2671.9,2671.3,3.23324817]
[1739203819417,3.2078,2671.6,2671.0,3.23324817]
[1739203820119,3.81901346,2671.9,2671.0,3.23324817]
[1739203820316,3.81901346,2671.9,2671.3,3.23324817]
[1739203820519,4.05056702,2671.8,2671.3,3.23324817]
[1739203820718,0.61121346,2671.9,2671.3,3.23324817]
[1739203821115,3.81901346,2671.9,2671.3,3.23324817]
[1739203822020,0.00561346,2671.9,2671.6,3.23324817]
[1739203823226,0.00561346,2671.9,2671.8,3.2078]
[1739203823919,0.00561346,2671.9,2671.7,1.1691]
[1739203824215,0.00561346,2671.9,2671.8,3.2078]
[1739203824525,0.00561346,2671.9,2671.6,3.23324817]
[1739203827824,3.2078,2671.8,2671.3,3.23324817]
[1739203829533,3.9563,2671.4,2670.7,3.83944817]
[1739203829723,0.568,2671.3,2670.7,3.83944817]
[1739203829917,1.31652,2671.3,2670.7,3.23324817]
[1739203830118,3.2078,2671.1,2670.8,40.8]
[1739203830324,3.2078,2671.1,2670.7,3.23324817]
[1739203830730,3.95637,2671.1,2670.7,44.03324817]
[1739203831031,3.2078,2671.1,2670.7,44.03324817]
[1739203831326,3.2078,2671.7,2671.0,3.23324817]
[1739203831527,3.2078,2671.7,2671.1,3.2078]
[1739203831734,7.23055272,2671.7,2671.1,3.2078]
[1739203832831,3.2078,2671.7,2671.1,3.2078]
[1739203833130,3.2078,2671.7,2671.3,3.23324817]
[1739203833717,1.1245,2671.8,2671.5,3.2078]
[1739203834119,0.568,2671.8,2671.5,3.2078]
[1739203834330,0.55521346,2671.9,2671.6,3.23324817]
[1739203834331,0.00561346,2671.9,2671.6,3.23324817]
[1739203835418,0.00561346,2671.9,2671.8,3.2078]
[1739203836321,3.2078,2672.7,2671.8,4.9598]
[1739203836523,3.2078,2672.7,2672.2,6.44104817]
[1739203837331,3.2078,2673.4,2672.6,3.23324817]
[1739203837540,3.2078,2673.4,2672.9,3.23324817]
[1739203838734,3.21338816,2673.4,2672.9,3.23324817]
[1739203839036,3.21338816,2673.4,2672.6,3.23324817]
[1739203839229,0.748,2673.2,2672.6,3.23324817]
[1739203839430,3.2078,2672.8,2672.6,3.23324817]
[1739203839734,3.95579,2673.2,2672.6,3.23324817]
[1739203839932,3.2078,2672.8,2672.6,3.23324817]
[1739203840233,0.00558816,2673.4,2672.6,3.23324817]
[1739203840234,3.2078,2673.1,2672.6,3.23324817]
[1739203840935,3.2078,2672.7,2672.2,3.21341346]
[1739203841136,1.7699,2672.6,2672.2,3.21341346]
[1739203841432,5.97165459,2672.6,2672.2,3.21341346]
[1739203841632,3.2078,2672.3,2672.2,0.00561346]
[1739203841933,3.95603,2672.3,2672.2,0.00561346]
[1739203842632,3.2078,2672.3,2672.2,0.00561346]
[1739203843230,4.9777,2672.6,2672.2,0.00561346]
[1739203843730,1.7699,2672.6,2672.2,0.00561346]
[1739203843926,3.2078,2672.5,2672.2,0.00561346]
[1739203845332,3.2078,2672.5,2672.3,3.23324817]
[1739203845531,3.2078,2672.7,2672.3,3.23324817]
[1739203846939,3.2078,2672.4,2672.2,0.00561346]
[1739203847140,1.7175,2672.6,2672.2,0.00561346]
[1739203849130,1.7175,2672.6,2672.3,6.44104817]
[1739203849131,0.595,2672.6,2672.3,6.44104817]
[1739203849333,1.1481,2673.2,2672.3,6.44104817]
[1739203849540,1.7214,2673.2,2672.6,3.23324817]
[1739203849838,1.7214,2673.2,2672.3,6.44104817]
[1739203849839,3.2078,2673.0,2672.3,6.44104817]
[1739203850141,3.95584,2673.0,2672.3,6.44104817]
[1739203850338,4.08793723,2672.9,2672.3,6.44104817]
[1739203851134,3.2078,2672.8,2672.3,3.23324817]
[1739203851343,3.95601,2672.4,2672.2,0.00561346]
[1739203851647,0.5689,2672.3,2672.2,0.00561346]
[1739203851941,5.2967083,2672.3,2672.2,0.00561346]
[1739203852540,1.152,2672.3,2672.2,0.00561346]
[1739203854936,1.152,2672.3,2671.4,1.1176]
[1739203854937,7.152,2672.3,2671.4,3.23324817]
[1739203855238,0.74838,2671.8,2671.1,3.23324817]
[1739203855437,0.6063,2671.7,2671.1,3.23324817]
[1739203855743,4.64677848,2671.7,2671.1,3.23324817]
[1739203855935,3.2078,2671.4,2670.8,3.23324817]
[1739203856137,3.2078,2671.6,2671.1,0.00561346]
[1739203856336,4.65239194,2671.7,2671.5,3.2078]
[1739203856337,0.00561346,2671.7,2671.5,3.2078]
[1739203857637,0.00561346,2671.7,2671.4,3.23324817]
[1739203862342,0.3752,2672.9,2671.4,3.23324817]
[1739203862343,3.2078,2672.8,2671.5,8.13763151]
[1739203862546,0.5697,2672.8,2672.3,3.23324817]
[1739203862736,3.2078,2673.4,2672.6,3.23324817]
[1739203863047,4.79530468,2673.3,2672.6,3.23324817]
[1739203863543,0.00558816,2673.2,2672.9,3.23324817]
[1739203863744,0.00558816,2673.2,2673.1,3.23324817]
[1739203864533,0.00558816,2673.2,2672.9,1.752]
[1739203865649,3.2078,2673.1,2672.9,1.752]
[1739203866149,0.00558816,2673.2,2672.9,1.752]
[1739203868148,0.00558816,2673.2,2673.1,3.23324817]
[1739203869643,0.00558816,2673.2,2672.8,3.23324817]
[1739203871743,0.74805,2673.0,2672.7,0.00561346]
[1739203871950,3.2078,2672.8,2672.7,0.00561346]
[1739203872341,7.33509758,2672.8,2672.7,0.00561346]
[1739203872555,3.2078,2672.8,2672.7,0.00561346]
[1739203872749,1.7375,2672.9,2672.7,0.00561346]
[1739203872950,0.5668,2672.9,2672.7,0.00561346]
[1739203873149,0.00558816,2673.2,2672.8,3.23324817]
[1739203875154,0.29309847,2674.0,2672.8,3.23324817]
[1739203875155,3.2078,2674.1,2673.1,3.2078]
[1739203875453,3.2078,2674.1,2674.0,3.23324817]
[1739203878260,3.2078,2674.4,2674.0,3.23324817]
[1739203879356,3.2078,2674.4,2674.3,3.22096679]
[1739203880968,3.2078,2674.4,2674.0,3.81466679]
[1739203881265,0.5888,2674.8,2674.3,3.22096679]
[1739203881266,3.2078,2674.7,2674.3,3.22096679]
[1739203881474,3.2078,2675.0,2674.6,3.22096679]
[1739203881764,3.2078,2675.0,2674.9,3.22096679]
[1739203881964,3.2078,2675.0,2674.6,3.22096679]
[1739203882565,3.2078,2675.0,2674.6,3.22026226]
[1739203883773,3.2078,2674.7,2674.6,3.22026226]
[1739203884070,3.2078,2674.7,2674.3,3.22026226]
[1739203884270,0.5798,2674.6,2674.3,3.22026226]
[1739203885770,3.2078,2674.4,2674.0,4.97026226]
[1739203886073,3.2078,2674.1,2674.0,4.97026226]
[1739203886268,3.2078,2674.1,2674.0,3.22026226]
[1739203886469,3.2078,2674.1,2673.9,0.00561346]
[1739203886773,3.2078,2674.1,2674.0,3.22026226]
[1739203887666,0.5787,2674.3,2674.0,3.22026226]
[1739203887873,3.7876,2674.6,2674.0,3.22026226]
[1739203888068,0.5798,2674.6,2674.4,3.22026226]
[1739203888264,1.122,2675.0,2674.4,3.22026226]
[1739203888460,1.122,2675.0,2674.7,3.22026226]
[1739203890271,0.5958,2675.1,2674.7,3.22026226]
[1739203890964,3.2078,2675.2,2674.7,3.22026226]
[1739203891370,3.2078,2675.2,2675.0,3.22026226]
[1739203891675,3.2078,2675.2,2674.7,3.22026226]
[1739203891873,3.2078,2674.8,2674.7,3.22026226]
[1739203892071,3.2078,2675.1,2674.5,0.5788]